[Event "Late-Titled-Tuesday-Blitz-February-20-2024"]
[Site "Chess.com"]
[Date "2024.02.20"]
[Round "1"]
[White "MKlose11"]
[Black "BebeBonito2022"]
[Result "1/2-1/2"]
[WhiteElo "2609"]
[BlackElo "2314"]
[TimeControl "180+1"]
[EndTime "14:07:35 PST"]
[Termination "Game drawn by repetition"]

1. e4 {[%clk 0:02:57.2]} 1... e5 {[%clk 0:02:59.9]} 2. Nf3 {[%clk 0:02:39.7]}
2... Nc6 {[%clk 0:02:59.9]} 3. d4 {[%clk 0:02:39.2]} 3... exd4 {[%clk
0:02:59.7]} 4. Bc4 {[%clk 0:02:38.8]} 4... Nf6 {[%clk 0:02:59.8]} 5. O-O {[%clk
0:02:38.4]} 5... Nxe4 {[%clk 0:02:59.5]} 6. Re1 {[%clk 0:02:38.6]} 6... d5
{[%clk 0:02:59.5]} 7. Bxd5 {[%clk 0:02:39.2]} 7... Qxd5 {[%clk 0:02:59.5]} 8.
Nc3 {[%clk 0:02:39.9]} 8... Qa5 {[%clk 0:02:59.4]} 9. Nxe4 {[%clk 0:02:39.1]}
9... Be6 {[%clk 0:02:59.6]} 10. Neg5 {[%clk 0:02:39.1]} 10... O-O-O {[%clk
0:02:58.9]} 11. Nxe6 {[%clk 0:02:38.9]} 11... fxe6 {[%clk 0:02:59.2]} 12. Rxe6
{[%clk 0:02:39.7]} 12... Qd5 {[%clk 0:02:59.5]} 13. Qe2 {[%clk 0:02:38.7]} 13...
h6 {[%clk 0:02:59.9]} 14. Bd2 {[%clk 0:02:37.7]} 14... Bc5 {[%clk 0:02:54.3]}
15. Qe4 {[%clk 0:02:33.4]} 15... Qxe4 {[%clk 0:02:47.4]} 16. Rxe4 {[%clk
0:02:34.3]} 16... Rhe8 {[%clk 0:02:42.4]} 17. Rae1 {[%clk 0:02:32.9]} 17... Rxe4
{[%clk 0:02:31.4]} 18. Rxe4 {[%clk 0:02:33.8]} 18... Kd7 {[%clk 0:02:21.4]} 19.
Kf1 {[%clk 0:02:29.4]} 19... Re8 {[%clk 0:02:18.2]} 20. Rxe8 {[%clk 0:02:26.5]}
20... Kxe8 {[%clk 0:02:19.1]} 21. Ke2 {[%clk 0:02:27.1]} 21... Kd7 {[%clk
0:02:14.8]} 22. Kd3 {[%clk 0:02:27.3]} 22... b5 {[%clk 0:01:38.2]} 23. a3 {[%clk
0:02:17.9]} 23... Ke6 {[%clk 0:01:27]} 24. Bf4 {[%clk 0:02:17.5]} 24... Bb6
{[%clk 0:01:25.6]} 25. Ke4 {[%clk 0:02:16.6]} 25... g5 {[%clk 0:01:20.4]} 26.
Be5 {[%clk 0:02:11.8]} 26... Nxe5 {[%clk 0:01:03.2]} 27. Nxe5 {[%clk 0:02:12.7]}
27... c5 {[%clk 0:01:00.9]} 28. h3 {[%clk 0:02:00.9]} 28... Bc7 {[%clk
0:00:51.4]} 29. Nd3 {[%clk 0:01:50.7]} 29... Bb6 {[%clk 0:00:46.1]} 30. f4
{[%clk 0:01:46.4]} 30... c4 {[%clk 0:00:36.2]} 31. Nc1 {[%clk 0:01:34.1]} 31...
gxf4 {[%clk 0:00:31.9]} 32. Kxf4 {[%clk 0:01:35]} 32... Kd5 {[%clk 0:00:29.3]}
33. g4 {[%clk 0:01:34.7]} 33... Ba5 {[%clk 0:00:26.8]} 34. Kf3 {[%clk
0:01:23.7]} 34... Bd2 {[%clk 0:00:25.9]} 35. Ne2 {[%clk 0:01:23.6]} 35... d3
{[%clk 0:00:23.3]} 36. cxd3 {[%clk 0:01:20.4]} 36... cxd3 {[%clk 0:00:23.4]} 37.
Ng3 {[%clk 0:01:11.5]} 37... Bc1 {[%clk 0:00:20.7]} 38. b3 {[%clk 0:01:11.7]}
38... Kd4 {[%clk 0:00:19.5]} 39. a4 {[%clk 0:01:03.8]} 39... bxa4 {[%clk
0:00:16.7]} 40. bxa4 {[%clk 0:01:04.7]} 40... Kc3 {[%clk 0:00:15.5]} 41. Nf5
{[%clk 0:00:58.2]} 41... Bg5 {[%clk 0:00:06.1]} 42. a5 {[%clk 0:00:42]} 42... d2
{[%clk 0:00:06.2]} 43. Ke2 {[%clk 0:00:41.2]} 43... Kc2 {[%clk 0:00:06.8]} 44.
Nd4+ {[%clk 0:00:41.3]} 44... Kc1 {[%clk 0:00:06.7]} 45. Nb3+ {[%clk 0:00:41.4]}
45... Kc2 {[%clk 0:00:06.7]} 46. Nd4+ {[%clk 0:00:36.4]} 46... Kc1 {[%clk
0:00:06.6]} 47. Nb3+ {[%clk 0:00:33.5]} 47... Kc2 {[%clk 0:00:07.1]} 48. Nd4+
{[%clk 0:00:22.4]} 1/2-1/2

[Event "Late-Titled-Tuesday-Blitz-February-20-2024"]
[Site "Chess.com"]
[Date "2024.02.20"]
[Round "1"]
[White "sofaceindisguise"]
[Black "Taran2004"]
[Result "1/2-1/2"]
[WhiteElo "2718"]
[BlackElo "2395"]
[TimeControl "180+1"]
[EndTime "14:07:42 PST"]
[Termination "Game drawn by repetition"]

1. d4 {[%clk 0:03:00.9]} 1... Nf6 {[%clk 0:02:59]} 2. c4 {[%clk 0:03:01.1]} 2...
c5 {[%clk 0:02:58.9]} 3. d5 {[%clk 0:03:00.2]} 3... b5 {[%clk 0:02:59.2]} 4.
cxb5 {[%clk 0:02:58.6]} 4... a6 {[%clk 0:02:59.6]} 5. bxa6 {[%clk 0:02:58.1]}
5... d6 {[%clk 0:02:59.4]} 6. Nc3 {[%clk 0:02:57.8]} 6... Bxa6 {[%clk
0:02:59.5]} 7. g3 {[%clk 0:02:58.4]} 7... g6 {[%clk 0:02:59.2]} 8. Bg2 {[%clk
0:02:59]} 8... Bg7 {[%clk 0:02:58.9]} 9. Nf3 {[%clk 0:02:59.7]} 9... O-O {[%clk
0:02:58.4]} 10. O-O {[%clk 0:03:00.4]} 10... Nbd7 {[%clk 0:02:57.7]} 11. Qc2
{[%clk 0:03:00.2]} 11... Qb6 {[%clk 0:02:57.3]} 12. Rb1 {[%clk 0:03:00.7]} 12...
Rfb8 {[%clk 0:02:54.4]} 13. b3 {[%clk 0:03:00.3]} 13... Ng4 {[%clk 0:02:54.1]}
14. a4 {[%clk 0:02:52.3]} 14... Qb4 {[%clk 0:02:40]} 15. Bd2 {[%clk 0:02:50.7]}
15... Qb7 {[%clk 0:02:30.9]} 16. Rfe1 {[%clk 0:02:48.9]} 16... Nge5 {[%clk
0:02:29.6]} 17. Nxe5 {[%clk 0:02:45]} 17... Nxe5 {[%clk 0:02:30.5]} 18. h3
{[%clk 0:02:40.3]} 18... Nd7 {[%clk 0:02:27.7]} 19. Kh2 {[%clk 0:02:39.1]} 19...
Qc7 {[%clk 0:02:24.5]} 20. f4 {[%clk 0:02:30.2]} 20... Rb6 {[%clk 0:02:20.7]}
21. e4 {[%clk 0:02:29.3]} 21... Rab8 {[%clk 0:02:20.7]} 22. Bf1 {[%clk
0:02:21.1]} 22... Bxf1 {[%clk 0:02:16.5]} 23. Rxf1 {[%clk 0:02:21.3]} 23... Bxc3
{[%clk 0:02:05.9]} 24. Bxc3 {[%clk 0:02:20.2]} 24... Qb7 {[%clk 0:02:06.3]} 25.
Rb2 {[%clk 0:02:00.1]} 25... Rxb3 {[%clk 0:02:04]} 26. Rfb1 {[%clk 0:02:00.2]}
26... c4 {[%clk 0:01:59.1]} 27. Bd4 {[%clk 0:01:58.5]} 27... Qb4 {[%clk
0:01:55.5]} 28. a5 {[%clk 0:01:43.7]} 28... Qxa5 {[%clk 0:01:37.4]} 29. Rxb3
{[%clk 0:01:38.2]} 29... cxb3 {[%clk 0:01:20.9]} 30. Qf2 {[%clk 0:01:17.5]}
30... Nc5 {[%clk 0:01:14.1]} 31. Qe3 {[%clk 0:01:09.8]} 31... Qa2+ {[%clk
0:00:54.3]} 32. Rb2 {[%clk 0:01:09.3]} 32... Qa3 {[%clk 0:00:54.7]} 33. e5
{[%clk 0:01:03.9]} 33... Na4 {[%clk 0:00:46.2]} 34. exd6 {[%clk 0:01:02.9]}
34... Nxb2 {[%clk 0:00:21.4]} 35. dxe7 {[%clk 0:00:59.4]} 35... Nc4 {[%clk
0:00:21.7]} 36. e8=Q+ {[%clk 0:00:59]} 36... Rxe8 {[%clk 0:00:21.4]} 37. Qxe8+
{[%clk 0:00:59.4]} 37... Qf8 {[%clk 0:00:21.2]} 38. Qb5 {[%clk 0:00:57.5]} 38...
b2 {[%clk 0:00:20]} 39. Bxb2 {[%clk 0:00:54.5]} 39... Nxb2 {[%clk 0:00:20.1]}
40. Qxb2 {[%clk 0:00:54.9]} 40... Qc5 {[%clk 0:00:20.6]} 41. Qb8+ {[%clk
0:00:54.6]} 41... Kg7 {[%clk 0:00:20.8]} 42. Qe5+ {[%clk 0:00:55.2]} 42... Kg8
{[%clk 0:00:20.7]} 43. Qe4 {[%clk 0:00:50.6]} 43... Qf2+ {[%clk 0:00:20.5]} 44.
Qg2 {[%clk 0:00:51.3]} 44... Qd4 {[%clk 0:00:21.1]} 45. h4 {[%clk 0:00:44.4]}
45... h5 {[%clk 0:00:18.6]} 46. Qf3 {[%clk 0:00:44]} 46... Kf8 {[%clk
0:00:18.4]} 47. Kg2 {[%clk 0:00:43.8]} 47... Qd2+ {[%clk 0:00:18.4]} 48. Kf1
{[%clk 0:00:43.4]} 48... Ke7 {[%clk 0:00:19]} 49. Qe4+ {[%clk 0:00:42.8]} 49...
Kf8 {[%clk 0:00:16]} 50. Qe5 {[%clk 0:00:34.9]} 50... Qd3+ {[%clk 0:00:14]} 51.
Kf2 {[%clk 0:00:35.5]} 51... Qd2+ {[%clk 0:00:14.3]} 52. Kf3 {[%clk 0:00:32.6]}
52... Qd3+ {[%clk 0:00:14.7]} 53. Kg2 {[%clk 0:00:32.9]} 53... Qd2+ {[%clk
0:00:15]} 54. Kh3 {[%clk 0:00:32.9]} 54... Qd3 {[%clk 0:00:14.5]} 55. d6 {[%clk
0:00:30.5]} 55... Qf1+ {[%clk 0:00:14.6]} 56. Kh2 {[%clk 0:00:30.7]} 56... Qf2+
{[%clk 0:00:15.1]} 57. Kh1 {[%clk 0:00:31.4]} 57... Qf1+ {[%clk 0:00:15.8]} 58.
Kh2 {[%clk 0:00:31.7]} 58... Qf2+ {[%clk 0:00:16.3]} 59. Kh1 {[%clk 0:00:32.4]}
59... Qf1+ {[%clk 0:00:16.9]} 60. Kh2 {[%clk 0:00:33.3]} 1/2-1/2

[Event "Late-Titled-Tuesday-Blitz-February-20-2024"]
[Site "Chess.com"]
[Date "2024.02.20"]
[Round "1"]
[White "Marcin"]
[Black "Jospem"]
[Result "0-1"]
[WhiteElo "2513"]
[BlackElo "3099"]
[TimeControl "180+1"]
[EndTime "14:07:45 PST"]
[Termination "Jospem won on time"]

1. Nf3 {[%clk 0:02:58.3]} 1... c5 {[%clk 0:03:00.4]} 2. e4 {[%clk 0:02:57.7]}
2... d6 {[%clk 0:03:00.3]} 3. Nc3 {[%clk 0:02:51.4]} 3... a6 {[%clk 0:03:00.5]}
4. a4 {[%clk 0:02:47.9]} 4... e6 {[%clk 0:03:00.2]} 5. Bc4 {[%clk 0:02:48]} 5...
Nf6 {[%clk 0:03:00.3]} 6. O-O {[%clk 0:02:47.6]} 6... d5 {[%clk 0:03:00.9]} 7.
exd5 {[%clk 0:02:47.6]} 7... exd5 {[%clk 0:03:01.8]} 8. Re1+ {[%clk 0:02:48.2]}
8... Be7 {[%clk 0:03:01.5]} 9. Ba2 {[%clk 0:02:44.7]} 9... O-O {[%clk
0:02:59.9]} 10. d4 {[%clk 0:02:45.1]} 10... c4 {[%clk 0:02:56.5]} 11. b3 {[%clk
0:02:40]} 11... Bb4 {[%clk 0:02:51.4]} 12. Bd2 {[%clk 0:02:39.9]} 12... cxb3
{[%clk 0:02:51.1]} 13. Bxb3 {[%clk 0:02:39.2]} 13... Nc6 {[%clk 0:02:51.6]} 14.
h3 {[%clk 0:02:36.5]} 14... h6 {[%clk 0:02:51.7]} 15. Rb1 {[%clk 0:02:21.2]}
15... Qd6 {[%clk 0:02:38.7]} 16. Ne2 {[%clk 0:02:15.8]} 16... Ne4 {[%clk
0:02:28.5]} 17. Bxb4 {[%clk 0:02:10.4]} 17... Nxb4 {[%clk 0:02:29.4]} 18. c3
{[%clk 0:02:04.3]} 18... Nc6 {[%clk 0:02:29.3]} 19. c4 {[%clk 0:02:03.9]} 19...
Bf5 {[%clk 0:02:14.2]} 20. cxd5 {[%clk 0:02:02]} 20... Nb4 {[%clk 0:02:13]} 21.
Rc1 {[%clk 0:01:50]} 21... Nxd5 {[%clk 0:02:05.9]} 22. Ne5 {[%clk 0:01:48.6]}
22... Rad8 {[%clk 0:02:02.3]} 23. Qd3 {[%clk 0:01:36.1]} 23... Qf6 {[%clk
0:01:54.9]} 24. Qf3 {[%clk 0:01:35]} 24... Nd2 {[%clk 0:01:53.7]} 25. Qg3 {[%clk
0:01:33.1]} 25... Nxb3 {[%clk 0:01:25.5]} 26. Qxb3 {[%clk 0:01:34]} 26... Qb6
{[%clk 0:01:25.7]} 27. Qxb6 {[%clk 0:01:27.9]} 27... Nxb6 {[%clk 0:01:26.6]} 28.
a5 {[%clk 0:01:28.3]} 28... Nd5 {[%clk 0:01:26.3]} 29. Rc5 {[%clk 0:01:16.1]}
29... f6 {[%clk 0:01:21.5]} 30. Nc4 {[%clk 0:01:14.7]} 30... Bd3 {[%clk
0:01:20.6]} 31. Ne3 {[%clk 0:01:13.8]} 31... Nb4 {[%clk 0:01:13.6]} 32. Nf4
{[%clk 0:01:08.4]} 32... Rfe8 {[%clk 0:01:07.3]} 33. d5 {[%clk 0:00:53.1]} 33...
Bb5 {[%clk 0:00:58.6]} 34. Rb1 {[%clk 0:00:45.7]} 34... Nd3 {[%clk 0:00:58.6]}
35. Nxd3 {[%clk 0:00:45.8]} 35... Bxd3 {[%clk 0:00:59.5]} 36. Rxb7 {[%clk
0:00:45.6]} 36... Rc8 {[%clk 0:00:59]} 37. Rxc8 {[%clk 0:00:26.3]} 37... Rxc8
{[%clk 0:00:59.9]} 38. d6 {[%clk 0:00:20.6]} 38... Rd8 {[%clk 0:01:00.4]} 39. d7
{[%clk 0:00:18.2]} 39... Bb5 {[%clk 0:00:56.8]} 40. f4 {[%clk 0:00:08.4]} 40...
Rxd7 {[%clk 0:00:44.3]} 41. Rxd7 {[%clk 0:00:08.3]} 41... Bxd7 {[%clk
0:00:45.2]} 42. Kf2 {[%clk 0:00:08.7]} 42... Kf7 {[%clk 0:00:45.9]} 43. f5
{[%clk 0:00:04.8]} 43... Ke7 {[%clk 0:00:46.1]} 44. Kf3 {[%clk 0:00:05.1]} 44...
Kd6 {[%clk 0:00:46.8]} 45. Ke4 {[%clk 0:00:05.8]} 45... Kc5 {[%clk 0:00:47.2]}
46. g4 {[%clk 0:00:05.3]} 46... Bc6+ {[%clk 0:00:47.3]} 47. Kf4 {[%clk
0:00:05.2]} 47... Kb5 {[%clk 0:00:48]} 48. h4 {[%clk 0:00:05.6]} 48... Kxa5
{[%clk 0:00:48.5]} 49. g5 {[%clk 0:00:06.1]} 49... hxg5+ {[%clk 0:00:44.5]} 50.
hxg5 {[%clk 0:00:06.4]} 50... Kb4 {[%clk 0:00:35]} 51. gxf6 {[%clk 0:00:06.6]}
51... gxf6 {[%clk 0:00:35.9]} 52. Ng4 {[%clk 0:00:07.1]} 52... a5 {[%clk
0:00:36.7]} 53. Nxf6 {[%clk 0:00:07.6]} 53... a4 {[%clk 0:00:37.4]} 54. Ng4
{[%clk 0:00:04.9]} 54... a3 {[%clk 0:00:36.8]} 55. Ne5 {[%clk 0:00:05.3]} 55...
Bd5 {[%clk 0:00:34.6]} 56. Nd3+ {[%clk 0:00:03.1]} 56... Kc3 {[%clk 0:00:35]}
57. Nc1 {[%clk 0:00:02.1]} 57... Kc2 {[%clk 0:00:35.7]} 58. Ne2 {[%clk
0:00:01.8]} 58... Kb2 {[%clk 0:00:36.4]} 59. Nd4 {[%clk 0:00:02.3]} 59... a2
{[%clk 0:00:36.7]} 60. f6 {[%clk 0:00:02.2]} 60... a1=Q {[%clk 0:00:36.9]} 0-1

[Event "Late-Titled-Tuesday-Blitz-February-20-2024"]
[Site "Chess.com"]
[Date "2024.02.20"]
[Round "1"]
[White "Duhless"]
[Black "sakkikuska"]
[Result "1-0"]
[WhiteElo "3081"]
[BlackElo "2513"]
[TimeControl "180+1"]
[EndTime "14:07:52 PST"]
[Termination "Duhless won by resignation"]

1. e4 {[%clk 0:03:00.9]} 1... c5 {[%clk 0:02:59.6]} 2. Nf3 {[%clk 0:03:00.5]}
2... e6 {[%clk 0:03:00.1]} 3. Nc3 {[%clk 0:02:58.4]} 3... Nc6 {[%clk 0:03:00]}
4. Bb5 {[%clk 0:02:57.7]} 4... Nd4 {[%clk 0:02:50.5]} 5. O-O {[%clk 0:02:57.3]}
5... a6 {[%clk 0:02:49.8]} 6. Bd3 {[%clk 0:02:55.4]} 6... b5 {[%clk 0:02:43.7]}
7. Nxd4 {[%clk 0:02:54.4]} 7... cxd4 {[%clk 0:02:43.5]} 8. Ne2 {[%clk 0:02:55]}
8... Qb6 {[%clk 0:02:43.9]} 9. c3 {[%clk 0:02:54.3]} 9... dxc3 {[%clk
0:02:43.6]} 10. bxc3 {[%clk 0:02:51.9]} 10... Bb7 {[%clk 0:02:40.9]} 11. Bc2
{[%clk 0:02:51.3]} 11... d5 {[%clk 0:02:37.5]} 12. e5 {[%clk 0:02:49.8]} 12...
Ne7 {[%clk 0:02:29]} 13. d4 {[%clk 0:02:49.7]} 13... Nc6 {[%clk 0:02:28.2]} 14.
f4 {[%clk 0:02:47.9]} 14... g6 {[%clk 0:02:20.9]} 15. Kh1 {[%clk 0:02:47.4]}
15... Be7 {[%clk 0:02:18.2]} 16. Be3 {[%clk 0:02:43.5]} 16... Na5 {[%clk
0:02:13.5]} 17. a4 {[%clk 0:02:28.4]} 17... Nc4 {[%clk 0:02:11.5]} 18. Bf2
{[%clk 0:02:28.6]} 18... Nb2 {[%clk 0:01:55.5]} 19. Qb1 {[%clk 0:02:27.3]} 19...
Nc4 {[%clk 0:01:53.5]} 20. Qc1 {[%clk 0:02:26.5]} 20... Bc6 {[%clk 0:01:36.3]}
21. axb5 {[%clk 0:02:19.1]} 21... axb5 {[%clk 0:01:31.6]} 22. Rxa8+ {[%clk
0:02:17.8]} 22... Bxa8 {[%clk 0:01:32.5]} 23. Ng1 {[%clk 0:02:14.8]} 23... Bc6
{[%clk 0:01:08.8]} 24. Nf3 {[%clk 0:02:14.4]} 24... b4 {[%clk 0:01:03.9]} 25.
cxb4 {[%clk 0:02:13.3]} 25... Qxb4 {[%clk 0:01:04.8]} 26. Bh4 {[%clk 0:01:56.1]}
26... Bxh4 {[%clk 0:00:59.8]} 27. Nxh4 {[%clk 0:01:57]} 27... Qd2 {[%clk
0:00:56.1]} 28. Nf3 {[%clk 0:01:40.7]} 28... Qxc1 {[%clk 0:00:55.3]} 29. Rxc1
{[%clk 0:01:41.6]} 29... O-O {[%clk 0:00:43.6]} 30. Bd3 {[%clk 0:01:38.1]} 30...
Bb5 {[%clk 0:00:43.5]} 31. Rb1 {[%clk 0:01:28.8]} 31... Ba6 {[%clk 0:00:33.4]}
32. Ra1 {[%clk 0:01:26.1]} 32... Bb5 {[%clk 0:00:33.2]} 33. g4 {[%clk
0:01:24.3]} 33... h6 {[%clk 0:00:28.1]} 34. f5 {[%clk 0:01:23.6]} 34... gxf5
{[%clk 0:00:26.4]} 35. gxf5 {[%clk 0:01:24.5]} 35... exf5 {[%clk 0:00:26.2]} 36.
Bxf5 {[%clk 0:01:08.1]} 36... Ne3 {[%clk 0:00:22.7]} 37. Nh4 {[%clk 0:01:01.5]}
37... Nxf5 {[%clk 0:00:20.5]} 38. Nxf5 {[%clk 0:01:01.4]} 38... Bd3 {[%clk
0:00:20.5]} 39. Nd6 {[%clk 0:00:45.3]} 39... Rb8 {[%clk 0:00:16]} 40. Ra7 {[%clk
0:00:29.4]} 40... Bg6 {[%clk 0:00:10.9]} 41. Kg2 {[%clk 0:00:29.1]} 41... Rb4
{[%clk 0:00:10.4]} 42. Ra8+ {[%clk 0:00:28.1]} 42... Kh7 {[%clk 0:00:09.7]} 43.
Ra7 {[%clk 0:00:25.5]} 43... Rxd4 {[%clk 0:00:09]} 44. e6 {[%clk 0:00:25.9]}
44... Rd2+ {[%clk 0:00:06.3]} 45. Kf1 {[%clk 0:00:26.1]} 45... Bd3+ {[%clk
0:00:05.7]} 46. Kg1 {[%clk 0:00:24]} 46... Re2 {[%clk 0:00:05.9]} 47. exf7
{[%clk 0:00:21.2]} 47... Kg7 {[%clk 0:00:05.3]} 48. Ra8 {[%clk 0:00:21.4]} 48...
Re1+ {[%clk 0:00:03.7]} 49. Kg2 {[%clk 0:00:21.8]} 49... Rf1 {[%clk 0:00:04.2]}
50. Rg8+ {[%clk 0:00:21]} 50... Kh7 {[%clk 0:00:02.6]} 51. f8=Q {[%clk
0:00:21.3]} 51... Be4+ {[%clk 0:00:02.7]} 1-0

[Event "Late-Titled-Tuesday-Blitz-February-20-2024"]
[Site "Chess.com"]
[Date "2024.02.20"]
[Round "1"]
[White "Grischuk"]
[Black "komogro"]
[Result "1-0"]
[WhiteElo "3071"]
[BlackElo "2512"]
[TimeControl "180+1"]
[EndTime "14:07:53 PST"]
[Termination "Grischuk won on time"]

1. d4 {[%clk 0:03:00.9]} 1... Nf6 {[%clk 0:02:59.2]} 2. c4 {[%clk 0:03:01.2]}
2... e6 {[%clk 0:02:57]} 3. Bg5 {[%clk 0:03:01.2]} 3... Bb4+ {[%clk 0:02:54.8]}
4. Nd2 {[%clk 0:03:00.9]} 4... c5 {[%clk 0:02:51.9]} 5. a3 {[%clk 0:03:00.4]}
5... Bxd2+ {[%clk 0:02:49.2]} 6. Qxd2 {[%clk 0:03:01.3]} 6... d6 {[%clk
0:02:43.9]} 7. Nf3 {[%clk 0:02:40.9]} 7... Nbd7 {[%clk 0:02:28.9]} 8. e3 {[%clk
0:02:35.2]} 8... Qe7 {[%clk 0:02:26.1]} 9. Be2 {[%clk 0:02:11.6]} 9... b6 {[%clk
0:02:25.2]} 10. Bh4 {[%clk 0:02:04.6]} 10... Bb7 {[%clk 0:02:24.8]} 11. b4
{[%clk 0:01:59.1]} 11... O-O {[%clk 0:02:23.9]} 12. O-O {[%clk 0:01:58.9]} 12...
h6 {[%clk 0:02:18.7]} 13. Rfd1 {[%clk 0:01:49.5]} 13... Rfd8 {[%clk 0:02:14.5]}
14. dxc5 {[%clk 0:01:38.3]} 14... dxc5 {[%clk 0:02:11.9]} 15. Qb2 {[%clk
0:01:38.9]} 15... Rac8 {[%clk 0:01:45.6]} 16. Nd2 {[%clk 0:01:33.5]} 16... Nf8
{[%clk 0:01:14.6]} 17. f3 {[%clk 0:01:32.2]} 17... Ng6 {[%clk 0:01:12.5]} 18.
Bf2 {[%clk 0:01:32.8]} 18... Qc7 {[%clk 0:01:08.7]} 19. Rac1 {[%clk 0:01:28.9]}
19... Qe5 {[%clk 0:01:08.2]} 20. Qxe5 {[%clk 0:00:42.2]} 20... Nxe5 {[%clk
0:01:09.1]} 21. bxc5 {[%clk 0:00:43.1]} 21... bxc5 {[%clk 0:01:05.7]} 22. Nb3
{[%clk 0:00:34.2]} 22... Rxd1+ {[%clk 0:00:54.8]} 23. Rxd1 {[%clk 0:00:35.1]}
23... Ba6 {[%clk 0:00:55.2]} 24. Rc1 {[%clk 0:00:35.8]} 24... Nfd7 {[%clk
0:00:46.1]} 25. e4 {[%clk 0:00:27.7]} 25... Kf8 {[%clk 0:00:41.7]} 26. f4 {[%clk
0:00:23.2]} 26... Ng6 {[%clk 0:00:39.7]} 27. Be3 {[%clk 0:00:18.1]} 27... Ne7
{[%clk 0:00:33.8]} 28. Kf2 {[%clk 0:00:17.6]} 28... Ke8 {[%clk 0:00:33.5]} 29.
g4 {[%clk 0:00:15.4]} 29... Bb7 {[%clk 0:00:33.3]} 30. Bf3 {[%clk 0:00:09.8]}
30... e5 {[%clk 0:00:30.1]} 31. f5 {[%clk 0:00:08.2]} 31... Ng8 {[%clk
0:00:24.1]} 32. h4 {[%clk 0:00:06.7]} 32... Ngf6 {[%clk 0:00:24]} 33. Nd2 {[%clk
0:00:07.3]} 33... Bc6 {[%clk 0:00:20.3]} 34. g5 {[%clk 0:00:07.4]} 34... hxg5
{[%clk 0:00:19.1]} 35. hxg5 {[%clk 0:00:08.3]} 35... Ng8 {[%clk 0:00:19.6]} 36.
Nb1 {[%clk 0:00:06.5]} 36... Rb8 {[%clk 0:00:19.9]} 37. Nc3 {[%clk 0:00:06.6]}
37... Rb3 {[%clk 0:00:19.5]} 38. Nd5 {[%clk 0:00:06.4]} 38... Bxd5 {[%clk
0:00:19.6]} 39. cxd5 {[%clk 0:00:06.2]} 39... Rxa3 {[%clk 0:00:16.6]} 40. Bxc5
{[%clk 0:00:06.1]} 40... Ra2+ {[%clk 0:00:15.6]} 41. Kg3 {[%clk 0:00:05.8]}
41... Nxc5 {[%clk 0:00:15.7]} 42. Rxc5 {[%clk 0:00:06.7]} 42... Ne7 {[%clk
0:00:15.1]} 43. d6 {[%clk 0:00:06.9]} 43... a5 {[%clk 0:00:04.3]} 44. Rxe5
{[%clk 0:00:06.1]} 1-0

[Event "Late-Titled-Tuesday-Blitz-February-20-2024"]
[Site "Chess.com"]
[Date "2024.02.20"]
[Round "1"]
[White "Noki102"]
[Black "IsaqueGoncalvesSanto"]
[Result "1-0"]
[WhiteElo "2519"]
[BlackElo "1787"]
[TimeControl "180+1"]
[EndTime "14:07:53 PST"]
[Termination "Noki102 won by checkmate"]

1. d4 {[%clk 0:02:58.7]} 1... d5 {[%clk 0:02:59.2]} 2. Nf3 {[%clk 0:02:59.3]}
2... c6 {[%clk 0:02:58.2]} 3. c4 {[%clk 0:02:59]} 3... e6 {[%clk 0:02:57.2]} 4.
Nbd2 {[%clk 0:02:56.6]} 4... Nd7 {[%clk 0:02:52.4]} 5. g3 {[%clk 0:02:56.5]}
5... Nb6 {[%clk 0:02:51.7]} 6. c5 {[%clk 0:02:52.7]} 6... Nd7 {[%clk 0:02:51.5]}
7. Bg2 {[%clk 0:02:52.2]} 7... b6 {[%clk 0:02:51.5]} 8. cxb6 {[%clk 0:02:36.9]}
8... axb6 {[%clk 0:02:51.1]} 9. O-O {[%clk 0:02:37.1]} 9... Ngf6 {[%clk
0:02:50.3]} 10. Ne5 {[%clk 0:02:34.7]} 10... Nxe5 {[%clk 0:02:46.9]} 11. dxe5
{[%clk 0:02:34.5]} 11... Nd7 {[%clk 0:02:46.7]} 12. Nf3 {[%clk 0:02:18.2]} 12...
Ba6 {[%clk 0:02:37.3]} 13. Re1 {[%clk 0:02:17.2]} 13... Qc7 {[%clk 0:02:34.5]}
14. e4 {[%clk 0:02:14.2]} 14... Bb4 {[%clk 0:02:18.8]} 15. Bd2 {[%clk
0:02:12.4]} 15... Be7 {[%clk 0:01:49.8]} 16. exd5 {[%clk 0:02:10]} 16... cxd5
{[%clk 0:01:38]} 17. Rc1 {[%clk 0:02:10.5]} 17... Qb8 {[%clk 0:01:34.1]} 18. Bg5
{[%clk 0:01:55]} 18... Bb4 {[%clk 0:01:30.7]} 19. Bd2 {[%clk 0:01:49]} 19... Bc5
{[%clk 0:01:29.9]} 20. b4 {[%clk 0:01:43.7]} 20... Be7 {[%clk 0:01:28.2]} 21.
Nd4 {[%clk 0:01:38.3]} 21... Nxe5 {[%clk 0:01:17.9]} 22. Bf4 {[%clk 0:01:37.1]}
22... Bd6 {[%clk 0:01:15.8]} 23. Bxe5 {[%clk 0:01:34.8]} 23... Bxe5 {[%clk
0:01:15.4]} 24. Nc6 {[%clk 0:01:35.4]} 24... Qd6 {[%clk 0:01:04.6]} 25. Nxe5
{[%clk 0:01:32.9]} 25... Qxb4 {[%clk 0:01:04.5]} 26. Nc6 {[%clk 0:01:22.2]}
26... Qd6 {[%clk 0:01:00]} 27. Qxd5 {[%clk 0:01:18.4]} 27... Qxd5 {[%clk
0:00:43.9]} 28. Bxd5 {[%clk 0:01:17.7]} 28... Rc8 {[%clk 0:00:41.5]} 29. Bb3
{[%clk 0:01:12.9]} 29... Bb5 {[%clk 0:00:33]} 30. Ne5 {[%clk 0:01:10.5]} 30...
O-O {[%clk 0:00:31]} 31. a4 {[%clk 0:01:04.5]} 31... Ba6 {[%clk 0:00:21.5]} 32.
Nc6 {[%clk 0:01:00.4]} 32... Rfe8 {[%clk 0:00:19.2]} 33. Nb4 {[%clk 0:00:50.9]}
33... Bb7 {[%clk 0:00:18.3]} 34. f4 {[%clk 0:00:45.2]} 34... h6 {[%clk
0:00:18.2]} 35. Kf2 {[%clk 0:00:45.2]} 35... Rxc1 {[%clk 0:00:18]} 36. Rxc1
{[%clk 0:00:44.8]} 36... Re7 {[%clk 0:00:18.1]} 37. Ke3 {[%clk 0:00:39.9]} 37...
g6 {[%clk 0:00:18.4]} 38. Nd3 {[%clk 0:00:37.8]} 38... Rd7 {[%clk 0:00:18.6]}
39. Ne5 {[%clk 0:00:37.4]} 39... Rd6 {[%clk 0:00:15.5]} 40. Rc7 {[%clk
0:00:37.1]} 40... Bd5 {[%clk 0:00:15.1]} 41. Bxd5 {[%clk 0:00:36.4]} 41... Rxd5
{[%clk 0:00:15.3]} 42. Nxf7 {[%clk 0:00:36.5]} 42... Ra5 {[%clk 0:00:13]} 43.
Nxh6+ {[%clk 0:00:36.2]} 43... Kf8 {[%clk 0:00:12.6]} 44. Rc4 {[%clk 0:00:35.1]}
44... Ke7 {[%clk 0:00:12]} 45. Ng4 {[%clk 0:00:34.8]} 45... Kd6 {[%clk
0:00:11.7]} 46. Ne5 {[%clk 0:00:34.9]} 46... Kd5 {[%clk 0:00:11.9]} 47. Rb4
{[%clk 0:00:29.9]} 47... Kc5 {[%clk 0:00:11.1]} 48. Nd3+ {[%clk 0:00:29.9]}
48... Kc6 {[%clk 0:00:10.7]} 49. Re4 {[%clk 0:00:29]} 49... Kd6 {[%clk
0:00:10.1]} 50. Ne5 {[%clk 0:00:28.2]} 50... Kd5 {[%clk 0:00:09.2]} 51. Nxg6
{[%clk 0:00:25.4]} 51... Kd6 {[%clk 0:00:09.2]} 52. Ne5 {[%clk 0:00:25.3]} 52...
Rc5 {[%clk 0:00:08.8]} 53. Rd4+ {[%clk 0:00:25.1]} 53... Kc7 {[%clk 0:00:08.4]}
54. Rc4 {[%clk 0:00:24.9]} 54... Kd6 {[%clk 0:00:07.9]} 55. Rxc5 {[%clk
0:00:25.1]} 55... Kxc5 {[%clk 0:00:08.2]} 56. h4 {[%clk 0:00:23.7]} 56... Kb4
{[%clk 0:00:07.9]} 57. h5 {[%clk 0:00:23.9]} 57... Kxa4 {[%clk 0:00:08.5]} 58.
h6 {[%clk 0:00:24.5]} 58... b5 {[%clk 0:00:09.1]} 59. h7 {[%clk 0:00:25.2]}
59... b4 {[%clk 0:00:09.7]} 60. h8=Q {[%clk 0:00:25.7]} 60... b3 {[%clk
0:00:10.4]} 61. Nd3 {[%clk 0:00:25.9]} 61... Ka3 {[%clk 0:00:09.4]} 62. Qa1#
{[%clk 0:00:25.2]} 1-0